Cogmind - Beta 15 @@@ ROGUE MODE // 2025.10.19 @ 20:44:50 Player: pro100dens Result: Destroyed by H-55 Commando with Gauss Rifle Performance ------------- Evolutions (3) 1500 Regions Visited (4) 800 Robots Destroyed (46) 230 Value Destroyed (1975) 1975 Prototype IDs (3) 60 Alien Tech Used (0) 0 Bonus (0) 0 TOTAL SCORE: 4565 Bonus ------- None Cogmind --------- Core Integrity 0/700 Matter 276/300 Energy 86/100 System Corruption 5% Temperature Hot (235) Movement Rolling (100) Location -7/Factory Parts ------- > --- POWER (2) -------- (None) > --- PROPULSION (4) --- Armored Huge Wheel > --- UTILITY (3) ------ Medium Storage Unit Improved Power Shielding > --- WEAPON (4) ------- Shotgun > --- INVENTORY (10) --- Matter Filter Light Armor Plating Heavy Armor Plating Peak State ------------ > --- POWER ------------ Ion Engine Improved Ion Engine > --- PROPULSION ------- Light Treads Light Treads Light Treads Improved Aluminum Leg > --- UTILITY ---------- Improved Heat Sink Medium Storage Unit Improved Light Armor Plating > --- WEAPON ----------- Arc Projector Gauss Rifle Improved Light Cannon Flak Cannon > --- INVENTORY -------- Light Ion Engine Light Treads Improved Power Shielding Light Armor Plating Hardened Medium Armor Plating Beam Rifle Field Laser Advanced Beam Cannon Heavy Particle Cannon [Rating: 30] Favorites ----------- Power Improved Ion Engine Engine Improved Ion Engine Power Core Light Nuclear Core Propulsion Light Treads Treads Light Treads Leg Improved Aluminum Leg Wheel Armored Huge Wheel Utility Medium Storage Unit Device Terrain Scanner Storage Medium Storage Unit Protection Improved Light Armor Plating Weapon Flak Cannon Energy Gun Particle Gun Energy Cannon Advanced Beam Cannon Ballistic Gun Assault Rifle Ballistic Cannon Flak Cannon Launcher Shock Bomb Launcher Build | -11 -10 -9 -8 -7 ------- Run | Yrd Mat Mat Mat Fac Slots Evolved 6 | . . 2 2 2 Power 1 | . . . . 1 Propulsion 2 | . . 2 . . Utility 1 | . . . 1 . Weapon 2 | . . . 1 1 Parts Attached 43 | 7 2 5 11 18 Power 5 | 1 . 1 . 3 Engine 4 | 1 . 1 . 2 Core 1 | . . . . 1 Reactor . | . . . . . Propulsion 12 | 2 . 3 3 4 Treads 5 | 2 . . 2 1 Leg 6 | . . 3 1 2 Wheel 1 | . . . . 1 Hover . | . . . . . Flight . | . . . . . Utility 11 | 1 2 . 4 4 Device 6 | . 1 . 3 2 Storage 2 | 1 1 . . . Processor . | . . . . . Hackware . | . . . . . Protection 3 | . . . 1 2 Artifact . | . . . . . Weapon 15 | 3 . 1 4 7 Energy Gun 5 | 1 . 1 . 3 Energy Cannon 2 | . . . . 2 Ballistic Gun 5 | 2 . . 1 2 Ballistic Cannon 2 | . . . 2 . Launcher 1 | . . . 1 . Special Weapon . | . . . . . Impact Weapon . | . . . . . Slashing Weapon . | . . . . . Piercing Weapon . | . . . . . Special Melee Weapon . | . . . . . Unidentified Prototypes 1 | . . . . 1 Parts Lost 21 | . . . 2 19 Power 3 | . . . . 3 Propulsion 7 | . . . . 7 Utility 4 | . . . 1 3 Weapon 7 | . . . 1 6 Highest Loss Streak 11 | . . . 1 11 To Critical Strikes . | . . . . . Average Backups 7 | 3 7 7 9 5 Power 1 | . 1 2 2 . Propulsion 1 | 2 4 2 2 . Utility 2 | . . 1 2 3 Weapon 1 | . 1 1 2 1 Tool/Special . | . . . . . Unused Backups 7 | . . . 4 3 Power . | . . . . . Propulsion 4 | . . . 4 . Utility 3 | . . . . 3 Weapon . | . . . . . Tool/Special . | . . . . . Average Slot Usage (%) 91 | . 98 99 98 78 Engine 10 | . 14 11 9 10 Treads 19 | . 28 22 24 9 Leg 9 | . . 21 11 8 Device 8 | . 13 11 8 6 Storage 9 | . 14 11 9 7 Protection 6 | . . . 8 7 Energy Gun 6 | . . 7 5 9 Energy Cannon 3 | . . . . 8 Ballistic Gun 9 | . 28 14 7 2 Ballistic Cannon 5 | . . . 11 3 Peak Build Rating 30 | 6 7 12 24 30 Average Rating 18 | 4 6 10 21 23 On Entrance 9 | . 6 7 11 24 Naked Turns . | . . . . . Heaviest Build 46 | 14 20 23 36 46 Greatest Support 60 | 40 40 40 60 60 Greatest Overweight (x) 8 | . . . . 8 Average Overweight (x) . | . . . . . Largest Inventory Capacity 10 | 8 10 10 10 10 Average Capacity 9 | 7 9 10 10 10 Most Carried 10 | 7 8 9 10 9 Average Carried 7 | 3 7 7 9 6 Final Capacity 10 | 8 10 10 10 10 Final Carried 9 | 6 8 8 9 4 Class Distribution -------------------- 44% | Scavenger-Tank 31% | Mutant 23% | Tank Dominant Class ---------------- Mutant | -10/Materials Mutant | -9/Materials Scavenger-Tank | -8/Materials Tank | -7/Factory Resources | -11 -10 -9 -8 -7 ----------- Run | Yrd Mat Mat Mat Fac Matter Collected 1589 | 93 305 143 640 408 Remotely . | . . . . . Salvage Created 1700 | . 46 232 943 479 Parts 106 | . 6 12 58 30 Haulers Intercepted . | . . . . . Recyclers Shooed . | . . . . . Parts Field Recycled . | . . . . . Retrieved Matter . | . . . . . Parts Self-Destructed . | . . . . . Prevented . | . . . . . Kills | -11 -10 -9 -8 -7 ------- Run | Yrd Mat Mat Mat Fac Combat Hostiles Destroyed 38 | . 3 5 20 10 Guns 18 | . 3 5 5 5 Cannons 14 | . . . 11 3 AOE 5 | . . . 4 1 Classes Destroyed 11 | . 1 2 6 2 Worker 2 | . . . 2 . Builder 1 | . . . 1 . Tunneler 1 | . . . 1 . Operator 1 | . . . 1 . Watcher 3 | . . . 3 . Swarmer 3 | . 3 . . . Grunt 17 | . . 3 9 5 Sentry 9 | . . 2 7 . Specialist 1 | . . . . 1 Hunter 5 | . . . 4 1 Programmer 3 | . . . . 3 Best Kill Streak 7 | . 3 2 7 3 Combat Bots Only 3 | . 3 2 3 3 Max Kills in Single Turn 3 | . 1 1 3 1 Gunslinging . | . . . . . Exploded 1 | . . . 1 1 Melee . | . . . . . Uniques/NPCs Destroyed . | . . . . . Combat | -11 -10 -9 -8 -7 -------- Run | Yrd Mat Mat Mat Fac Hostile Shots Fired 485 | . 19 48 97 321 Missed 175 | . 5 15 29 126 Hits 310 | . 14 33 68 195 Projectile 310 | . 14 33 68 195 Critical Strikes 6 | . . . 1 5 Part Disruptions 1 | . . . . 1 Damage Taken 4164 | . 161 373 979 2651 Core 903 | . 29 80 82 712 Absorbed by Shields 4 | . . . . 4 Redirected to Shielding 20 | . . . . 20 Regen/Repaired (Parts) 122 | . . . 122 . Core Remaining (%) 88 | 100 88 80 85 . Volleys Fired 153 | . 18 21 62 52 Largest 4 | . 2 2 3 4 Hottest 262 | . 40 85 138 262 Shots Fired 384 | . 36 42 177 129 Gun 223 | . 36 42 74 71 Cannon 142 | . . . 84 58 Launcher 19 | . . . 19 . Special . | . . . . . Kinetic 221 | . 36 32 133 20 Thermal 124 | . . 10 25 89 Explosive . | . . . . . Electromagnetic 39 | . . . 19 20 Robot Hit Streak 7 | . 5 4 5 7 Robot Miss Streak 10 | . 7 3 10 6 Penetration Max 1 | . . . 1 . Secondary Targets 2 | . 2 . . . Max Gunslinging Chain 1 | . 1 . . . Shots Hit Robots 213 | . 14 21 105 73 Core Hits 114 | . 5 10 78 21 Critical Kills . | . . . . . Critical Parts Destroyed 2 | . 1 . 1 . Critical Strikes 8 | . 1 . 3 4 Burn 5 | . . . 1 4 Destroy 2 | . 1 . 1 . Blast 1 | . . . 1 . Melee Attacks . | . . . . . Impact . | . . . . . Slashing . | . . . . . Piercing . | . . . . . Sneak Attacks . | . . . . . Combat Hostiles . | . . . . . Follow-up Attacks . | . . . . . Damage Inflicted 4216 | . 205 260 2242 1509 Guns 1708 | . 205 260 606 637 Cannons 1525 | . . . 941 584 Explosions 983 | . . . 695 288 Melee . | . . . . . Ramming . | . . . . . Kinetic 1880 | . 205 197 1361 117 Thermal 1735 | . . 63 379 1293 Explosive . | . . . . . Electromagnetic 601 | . . . 502 99 Impact . | . . . . . Slashing . | . . . . . Piercing . | . . . . . Highest Corruption 5 | . . . . 5 Average Corruption 2 | . . . . 2 Corruption Purged . | . . . . . Corruption Blocked . | . . . . . Effects 18 | . . . . 18 Message Errors 6 | . . . . 6 Matter Fused 2 | . . . . 2 Heat Flow Errors 1 | . . . . 1 Energy Discharges 3 | . . . . 3 Data Loss (minor) 3 | . . . . 3 Data Loss (major) 1 | . . . . 1 Misfires 1 | . . . . 1 Weapon Failures 1 | . . . . 1 Overload Shots . | . . . . . Overflow Damage 51 | . . . 26 25 Projectiles 25 | . . . . 25 Explosions 26 | . . . 26 . Melee . | . . . . . Knockbacks 27 | . . . 27 . Impact . | . . . . . Kinetic 24 | . . . 24 . Secondary 3 | . . . 3 . Self-Inflicted Damage 99 | . . . 65 34 Shots 5 | . . . 4 1 Rammed . | . . . . . Targets Rammed . | . . . . . Kicked . | . . . . . Crushed . | . . . . . Highest Temperature 572 | . . 138 202 572 Average Temperature 101 | . . 54 53 166 Received Heat Transfer 798 | . . 114 324 360 Effects 18 | . . . . 18 Shutdowns 3 | . . . . 3 Energy Bleed 3 | . . . . 3 Interference 7 | . . . . 7 Matter Decay 2 | . . . . 2 Short Circuit 2 | . . . . 2 Damage (major) 1 | . . . . 1 Siege Activations . | . . . . . Martial Activations . | . . . . . Shielding Activations . | . . . . . Robots Disrupted . | . . . . . Combat Hostiles . | . . . . . Robots Corrupted . | . . . . . Combat Hostiles . | . . . . . Parts Fried 1 | . . . 1 . Impact Corruptions . | . . . . . Robots Melted 1 | . . . . 1 Combat Hostiles 1 | . . . . 1 Parts Melted 4 | . . 1 . 3 Heat Transferred 3188 | . . 148 768 2272 Parts Sabotaged . | . . . . . Parts Stolen . | . . . . . Parts Stripped . | . . . . . Power Chain Reactions 1 | . . . 1 . Alert | -11 -10 -9 -8 -7 ------- Run | Yrd Mat Mat Mat Fac Maximum Alert Level 1 | . . . 1 . Low Security (%) 91 | 100 100 100 78 100 Level 1 8 | . . . 21 . Level 2 . | . . . . . Level 3 . | . . . . . Level 4 . | . . . . . Level 5 . | . . . . . High Security . | . . . . . Max Security . | . . . . . Peak Influence 261 | . 61 87 261 174 Initial 113 | . . . 11 113 Average 84 | . 8 52 157 42 Influence Increases 1379 | . 73 167 773 366 Destroy 0b10 Robot/C 760 | . 60 100 400 200 Destroy 0b10 Robot/NC 40 | . . . 40 . Destroy Leader 226 | . 10 30 136 50 Successful Hack 19 | . 2 7 10 . Disable Machine 225 | . . . 165 60 Destroy Structure 64 | . 1 . 22 41 Lose Combat Pursuer 45 | . . 30 . 15 Influence Decreases 1379 | . 73 140 550 616 Entered New Map 153 | . . . 16 137 Time Decay 1110 | . 73 140 514 383 Lost Part 116 | . . . 20 96 Squads Dispatched 12 | . 3 . 5 4 Investigation 4 | . 1 . 3 . Extermination 2 | . . . . 2 Reinforcement 6 | . 2 . 2 2 Assault . | . . . . . Garrison . | . . . . . Intercept . | . . . . . Searches Triggered . | . . . . . Construction Impeded 1 | . . . 1 . Haulers Reinforced 1 | . . . . 1 Active Scanning Responses . | . . . . . Cargo Convoy Interrupts 1 | . . . . 1 Stealth | -11 -10 -9 -8 -7 --------- Run | Yrd Mat Mat Mat Fac Distress Signals 4 | . 2 . 2 . Communications Jammed . | . . . . . Distress Signals . | . . . . . Times Spotted 69 | . 8 11 28 22 Peak Tracking Total 10 | . 4 4 4 10 Tactical Retreats 3 | . . 2 . 1 Traps | -11 -10 -9 -8 -7 ------- Run | Yrd Mat Mat Mat Fac Traps Triggered 6 | . 1 . 2 3 Indirectly . | . . . . . Trap Hack Attempts . | . . . . . Triggered . | . . . . . Disarmed . | . . . . . Reprogrammed . | . . . . . Reused . | . . . . . Traps Extracted . | . . . . . Installed . | . . . . . Triggered . | . . . . . Machines | -11 -10 -9 -8 -7 ---------- Run | Yrd Mat Mat Mat Fac Machines Disabled 15 | . . . 11 4 Max in Single Turn 4 | . . . 2 4 Machines Repaired . | . . . . . Machines Dismantled . | . . . . . Machines Sabotaged . | . . . . . Overloaded Fab Kills . | . . . . . Hacking | -11 -10 -9 -8 -7 --------- Run | Yrd Mat Mat Mat Fac Machines Accessed 6 | . 3 1 2 . Terminals 5 | . 3 1 1 . Fabricators . | . . . . . Repair Stations 1 | . . . 1 . Recycling Units . | . . . . . Scanalyzers . | . . . . . Garrison Access . | . . . . . Total Hacks 22 | . 11 6 5 . Successful 17 | . 8 4 5 . Failed 5 | . 3 2 . . Catastrophic . | . . . . . Database Lockouts . | . . . . . Manual . | . . . . . Terminals 19 | . 11 6 2 . Fabricators . | . . . . . Repair Stations 3 | . . . 3 . Recycling Units . | . . . . . Scanalyzers . | . . . . . Garrison Access . | . . . . . Terminal Hacks 14 | . 8 4 2 . Record 7 | . 4 3 . . Prototype ID Bank 1 | . . . 1 . Alert Level 3 | . 2 . 1 . Zone Layout 3 | . 2 1 . . Fabricator Hacks . | . . . . . Repair Station Hacks 3 | . . . 3 . Scan Component 2 | . . . 2 . Repair 1 | . . . 1 . Recycling Unit Hacks . | . . . . . Scanalyzer . | . . . . . Garrison Access Hacks . | . . . . . Unauthorized Hacks . | . . . . . Terminals . | . . . . . Fabricators . | . . . . . Repair Stations . | . . . . . Recycling Units . | . . . . . Scanalyzers . | . . . . . Garrison Access . | . . . . . Data Cores Recovered . | . . . . . Used . | . . . . . Hacking Detections 4 | . 2 1 1 . Full Trace Events 3 | . 1 1 1 . Feedback Events . | . . . . . Feedback Blocked . | . . . . . Robot Schematics Acquired . | . . . . . Robots Built . | . . . . . Authchips . | . . . . . Time . | . . . . . Total Robot Build Rating . | . . . . . Part Schematics Acquired . | . . . . . Parts Built . | . . . . . Authchips . | . . . . . Time . | . . . . . Total Part Build Rating . | . . . . . Parts Repaired 1 | . . . 1 . Time 26 | . . . 26 . Parts Recycled . | . . . . . Recycled Matter . | . . . . . Retrieved Matter . | . . . . . Retrieved Components . | . . . . . Parts Scanalyzed . | . . . . . Part Schematics Acquired . | . . . . . Parts Damaged . | . . . . . Bothacking | -11 -10 -9 -8 -7 ------------ Run | Yrd Mat Mat Mat Fac Used RIF Installer . | . . . . . Robots Hacked . | . . . . . Non-combat . | . . . . . Combat . | . . . . . Robot Hacks Applied . | . . . . . Relay Couplers Released . | . . . . . Fabnet Peak Effective % . | . . . . . Robots Rewired . | . . . . . Allies Hacked . | . . . . . Hacks Repelled . | . . . . . Allies | -11 -10 -9 -8 -7 -------- Run | Yrd Mat Mat Mat Fac Total Allies . | . . . . . Largest Group . | . . . . . Highest-Rated Group . | . . . . . Highest-Rated Ally . | . . . . . Total Orders . | . . . . . Ally Attacks . | . . . . . Total Damage . | . . . . . Kills . | . . . . . Allies Corrupted . | . . . . . Allies Melted . | . . . . . Intel | -11 -10 -9 -8 -7 ------- Run | Yrd Mat Mat Mat Fac Active Infowar (turns) 2008 | . 518 300 1190 . Sensors 320 | . . . 320 . Terrain 1688 | . 518 300 870 . Robot Analysis Total . | . . . . . Derelict Logs Recovered . | . . . . . Drone Launches . | . . . . . Drone Recoveries . | . . . . . Exploration | -11 -10 -9 -8 -7 ------------- Run | Yrd Mat Mat Mat Fac Turns Passed 3909 | 75 544 300 1600 1390 Spaces Moved 1881 | 39 302 139 826 575 Core 10 | 3 . . . 7 Treads 1708 | 36 302 139 826 405 Legs 161 | . . . . 161 Wheels 2 | . . . . 2 Hover . | . . . . . Flight . | . . . . . Fastest Speed 50 | 50 160 160 160 100 Average Speed 174 | 151 160 160 160 207 Slowest Speed 450 | 160 160 160 160 450 Overloaded Moves . | . . . . . Propulsion Burnouts . | . . . . . Robots Hopped . | . . . . . Potential Cave-ins . | . . . . . Cave-ins Triggered . | . . . . . Exploration Rate (%) 27 | 5 53 16 56 9 Regions Visited 4 Branch Regions . Pre-discovered Areas . | . . . . . Known Exits Taken . | . . . . . Unknown Exits Taken 4 | 1 1 1 1 . Scrap Searched . | . . . . . Spaces Dug . | . . . . . Terrain Destroyed 69 | . . . 24 45 Melee . | . . . . . Projectile 3 | . . . 3 . AOE 66 | . . . 21 45 Terrain Rammed . | . . . . . Walls Destroyed . | . . . . . Machines Disabled . | . . . . . Actions | -11 -10 -9 -8 -7 --------- Run | Yrd Mat Mat Mat Fac Total 2196 | 52 326 175 970 673 Wait 48 | . 2 3 43 . Move 1877 | 38 301 138 825 575 Hop . | . . . . . Pick Up 36 | 7 2 5 15 7 Fast Attach 14 | 5 1 . 3 5 Attach 23 | 1 . 3 7 12 Detach . | . . . . . Swap 8 | 1 1 2 3 1 Drop 22 | . 1 3 12 6 Fire 153 | . 18 21 62 52 Melee . | . . . . . Ram . | . . . . . Kick . | . . . . . Crush . | . . . . . Escape Stasis 15 | . . . . 15 Rewire . | . . . . . Trap . | . . . . . Miscellaneous . | . . . . . Route ------- -11/Scrapyard -10/Materials (discovered 2 exits: *Mat / [Sub]) -9/Materials -8/Materials -7/Factory History --------- Turn | Location | Event 21 | -11/Scrapyard | Discovered new exit (range 15) 76 | -11/Scrapyard | Entered Materials 139 | -10/Materials | Discovered new exit (range 10) 304 | -10/Materials | Build established: Mutant 570 | -10/Materials | Discovered new exit (range 14) 620 | -10/Materials | Entered another Materials area 620 | -9/Materials | Evolved 2 slots: Propulsion x2 896 | -9/Materials | Discovered new exit (range 5) 920 | -9/Materials | Entered another Materials area 920 | -8/Materials | Evolved 2 slots: Utility x1, Weapon x1 1284 | -8/Materials | Repaired Lgt. Treads 1306 | -8/Materials | Build established: Tank 1655 | -8/Materials | Build established: Scavenger-Tank 2373 | -8/Materials | Discovered new exit (range 3) 2520 | -8/Materials | Entered Factory 2520 | -7/Factory | Evolved 2 slots: Power x1, Weapon x1 2937 | -7/Factory | Lost 4 parts (2n2w) 3423 | -7/Factory | Build established: Tank 3854 | -7/Factory | Cargo convoy interrupted 3891 | -7/Factory | Core integrity fell below 50% 3897 | -7/Factory | Core integrity fell below 20% 3910 | -7/Factory | Destroyed by H-55 Commando with Gauss Rifle Last Messages --------------- Slug penetrates P-60 Hacker. Adv. Beam Cannon destroyed. M-28 Smith repairs X-67 Chaingunner. Penetrated by Slug. C/:M#0ERDEQYN8R%2 HX/ZSMSPLUYYWN0= Penetrated by Slug. Imp. Heat Sink destroyed. Hpw. Shotgun destroyed. Penetrated by Slug. Lgt. Nuclear Core destroyed. Penetrated by Slug. M-28 Smith repairs M-28 Smith. Slug penetrates M-28 Smith. Slug penetrates Wall. M-28 Smith repairs M-28 Smith Imp. Recalibrator. Acquired Arm. Huge Wheel. Acquired Shotgun. System corrupted: Heat flow error (+235). Slug penetrates Wall. Penetrated by Slug. Map ----- +----------------------------------------------------+ | ##############???? # = # # [ #?? | | ?????????????????? # # + """"" #?? | | ?????????????????? # # # """"" #?? | | ?????????????????? ####?#### ! # """ #?? | | ???????????????????????????# =%! # #?? | | ???????????????????????????# [! # #?? | | ???????????????????????????# # #?? | | ???????????????????????????# # #?? | | ???????????????????????????# ##############?? | | ??????????????############## # !![ """" #?? | | ??????????????# # # !![ "F " ##? | | ??????????????# # # ![ " #? | | ??????????????# # # " #?? | | ??????????????# """ """ # # " #?? | | ??????????????# """ """ # # " #?? | | ??????????????# """ """ + + " #?? | | ??????????????# # # " #?? | | ??????????????# """ """ # # " #?? | | ??????????????# """ """ # # " #?? | | ??????????????# """ """ # # " ] #?? | | ??????????????# # # #?? | | ??????????????# #^^^^ ##############?? | | ??????????????############## ^^ #??????????????? | | ??????????????# # #??????????????? | | ?????????????## # #??????????????? | | ?????????????## @ # #??????????????? | | ?????????????## # ##############?? | | ?????????????## p# # #?? | | ?????????????## h/ # #?? | | ?????????????## #h # #?? | | ?????????????## #xx # #?? | | ?????????????## # # """ """ #?? | | ?????????????## # # """ """ #?? | | ?????????????## # # """ """ #?? | | ?????????????## # # #?? | | ?????????????###/########### # """ """ *#?? | | ?????????????###u" ##### + """ """ #?? | | ??????????????## "###"# ???# # """ """ #?? | | ????????????? "% ###???#[! # #?? | | ????????????? "%" #######%! ###############? | | ???????????? " = #? | | ???????????? #? | | ?????????????? T #? | | ???????????? #? | | ???????????? #? | | ????????????? #########+########### #? | | ????????????? ????# #???# #? | | ??????????????#####?????# #???### ###? | | ????????????????????????# #?????# #??? | | ????????????????????????# #?????# #??? | +----------------------------------------------------+ Best States ------------- Heat Dissipation 48 Energy Generation 19 Energy Capacity 415 Matter Stores 300 Matter Capacity 300 Sight Range 16 Robot Scan Range 14 Terrain Scan Range 14 Terrain Scan Density 10 Armor Coverage 225 Power Shielding 66 Evasion (%) 40 Recoil Reduction 3 Item Schematics ----------------- None Robot Schematics ------------------ None Fabricated ------------ Nothing Repaired ---------- Lgt. Treads | 12% | -8/Materials Alien Tech Used ----------------- None Achievements -------------- Oops Please Form A Line Challenges ------------ None Game ------ Seed DeliverySuperdenseCarapace Manual? 0 Play Time 00:55:57 Cumulative 5.2 hours Start 2025.10.19 @ 19:40:42 End 2025.10.19 @ 20:44:50 Sessions 1 Manual Loads 0 Difficulty Rogue Special Mode None Game No. 5 Rogue 5 Adventurer 0 Explorer 0 Win Type - Total 0 Types 0/0/0/0/0/0/0/0/0/0 Lore% 1 Gallery% 7 Achievement% 8 Wizard Run 0 Options --------- Layout 1 ASCII 0 Keyboard 0 Movement Mouse Keybinds 0 Fullscreen 2 Font 24/Smallcaps Map View 25x17 Zoom Use 90% Tactical HUD 0 Map Filters NONE Filters NONE Steam 1 RUN: 6afa9380-597b-4c99-983e-622c72f12dca